[Event "Late-Titled-Tuesday-Blitz-March-26-2024"]
[Site "Chess.com"]
[Date "2024.03.26"]
[Round "6"]
[White "GHANDEEVAM2003"]
[Black "rezamahdavi2008"]
[Result "1/2-1/2"]
[WhiteElo "3048"]
[BlackElo "2877"]
[TimeControl "180+1"]
[EndTime "15:08:08 PDT"]
[Termination "Game drawn by repetition"]

1. e3 {[%clk 0:03:00.9]} 1... Nf6 {[%clk 0:02:59]} 2. c4 {[%clk 0:03:01.3]} 2...
e6 {[%clk 0:02:55.8]} 3. b3 {[%clk 0:03:01.1]} 3... d5 {[%clk 0:02:56.1]} 4. Bb2
{[%clk 0:03:01.8]} 4... Be7 {[%clk 0:02:54.5]} 5. Nf3 {[%clk 0:03:02.2]} 5...
dxc4 {[%clk 0:02:53.9]} 6. Bxc4 {[%clk 0:03:01.8]} 6... c5 {[%clk 0:02:54.6]} 7.
O-O {[%clk 0:03:01.5]} 7... Nc6 {[%clk 0:02:54.9]} 8. d4 {[%clk 0:03:01.1]} 8...
O-O {[%clk 0:02:54.2]} 9. dxc5 {[%clk 0:02:58.4]} 9... Bxc5 {[%clk 0:02:54.1]}
10. Nbd2 {[%clk 0:02:55.6]} 10... Be7 {[%clk 0:02:46.9]} 11. Rc1 {[%clk
0:02:52.3]} 11... a6 {[%clk 0:02:34]} 12. Qc2 {[%clk 0:02:50.7]} 12... Nb4
{[%clk 0:02:33.9]} 13. Qb1 {[%clk 0:02:50.3]} 13... b5 {[%clk 0:02:34.4]} 14.
Be2 {[%clk 0:02:49.8]} 14... Bb7 {[%clk 0:02:35]} 15. Rfd1 {[%clk 0:02:48.2]}
15... Qb6 {[%clk 0:02:27.2]} 16. Ng5 {[%clk 0:02:44.8]} 16... g6 {[%clk
0:02:17.6]} 17. Bd4 {[%clk 0:02:40.3]} 17... Qa5 {[%clk 0:02:14.9]} 18. Qa1
{[%clk 0:02:24.4]} 18... Nfd5 {[%clk 0:02:13.2]} 19. Bh8 {[%clk 0:01:55.3]}
19... f6 {[%clk 0:01:22.3]} 20. Nxe6 {[%clk 0:01:54.9]} 20... Kxh8 {[%clk
0:01:22.9]} 21. Nxf8 {[%clk 0:01:54.8]} 21... Rxf8 {[%clk 0:01:23.8]} 22. a3
{[%clk 0:01:53.9]} 22... Nc6 {[%clk 0:01:22.2]} 23. b4 {[%clk 0:01:48.9]} 23...
Qb6 {[%clk 0:01:22.5]} 24. Ne4 {[%clk 0:01:45]} 24... Ne5 {[%clk 0:01:19.4]} 25.
Nc5 {[%clk 0:01:43.3]} 25... Ba8 {[%clk 0:01:07.6]} 26. Qd4 {[%clk 0:01:34.5]}
26... Rd8 {[%clk 0:01:04.1]} 27. h3 {[%clk 0:01:25.8]} 27... Qc6 {[%clk
0:00:37]} 28. Bf1 {[%clk 0:01:12.9]} 28... Nb6 {[%clk 0:00:25.3]} 29. Qxd8+
{[%clk 0:01:06.4]} 29... Bxd8 {[%clk 0:00:25.5]} 30. Rxd8+ {[%clk 0:01:07.3]}
30... Kg7 {[%clk 0:00:26.2]} 31. Rcd1 {[%clk 0:01:08]} 31... Nbc4 {[%clk
0:00:18]} 32. Rb8 {[%clk 0:00:59.4]} 32... Nf3+ {[%clk 0:00:17.1]} 33. gxf3
{[%clk 0:00:48]} 33... Qxf3 {[%clk 0:00:18]} 34. Rd7+ {[%clk 0:00:48.6]} 34...
Kh6 {[%clk 0:00:18.4]} 35. e4 {[%clk 0:00:49.3]} 35... Bxe4 {[%clk 0:00:17.2]}
36. Nxe4 {[%clk 0:00:50.2]} 36... Qxe4 {[%clk 0:00:18.1]} 37. Rh8 {[%clk
0:00:38.3]} 37... Ne5 {[%clk 0:00:17.3]} 38. Rdxh7+ {[%clk 0:00:35.6]} 38... Kg5
{[%clk 0:00:17.8]} 39. Bg2 {[%clk 0:00:21.9]} 39... Qe1+ {[%clk 0:00:17.7]} 40.
Bf1 {[%clk 0:00:22.6]} 40... Nf3+ {[%clk 0:00:17.7]} 41. Kg2 {[%clk 0:00:23.2]}
41... Qe4 {[%clk 0:00:16.4]} 42. Kg3 {[%clk 0:00:12.9]} 42... Qf4+ {[%clk
0:00:08.6]} 43. Kg2 {[%clk 0:00:13.6]} 43... Ne1+ {[%clk 0:00:07]} 44. Kg1
{[%clk 0:00:13.7]} 44... Nf3+ {[%clk 0:00:07.1]} 45. Kg2 {[%clk 0:00:14.3]}
45... Qe4 {[%clk 0:00:06.6]} 46. Kg3 {[%clk 0:00:14]} 46... Qf4+ {[%clk
0:00:02.9]} 47. Kg2 {[%clk 0:00:14.6]} 1/2-1/2

[Event "Late-Titled-Tuesday-Blitz-March-26-2024"]
[Site "Chess.com"]
[Date "2024.03.26"]
[Round "6"]
[White "ViIIagra"]
[Black "mitrabhaa"]
[Result "1-0"]
[WhiteElo "2893"]
[BlackElo "3047"]
[TimeControl "180+1"]
[EndTime "15:08:08 PDT"]
[Termination "ViIIagra won by resignation"]

1. g3 {[%clk 0:02:55.5]} 1... d5 {[%clk 0:02:59]} 2. Bg2 {[%clk 0:02:55.5]} 2...
c6 {[%clk 0:02:59.6]} 3. d3 {[%clk 0:02:54.9]} 3... e5 {[%clk 0:02:59.2]} 4. Nd2
{[%clk 0:02:50.8]} 4... Bd6 {[%clk 0:02:58.1]} 5. Ngf3 {[%clk 0:02:50.8]} 5...
Nf6 {[%clk 0:02:58.5]} 6. O-O {[%clk 0:02:51.3]} 6... O-O {[%clk 0:02:58.9]} 7.
e4 {[%clk 0:02:51.7]} 7... Bg4 {[%clk 0:02:59.1]} 8. h3 {[%clk 0:02:51.6]} 8...
Bh5 {[%clk 0:02:59.3]} 9. Qe1 {[%clk 0:02:52]} 9... Nbd7 {[%clk 0:02:59.2]} 10.
Nh4 {[%clk 0:02:49]} 10... Re8 {[%clk 0:02:58.9]} 11. Nf5 {[%clk 0:02:47.1]}
11... Bc7 {[%clk 0:02:57.3]} 12. Nb3 {[%clk 0:02:37.3]} 12... a5 {[%clk
0:02:56.7]} 13. a4 {[%clk 0:02:36.5]} 13... Nf8 {[%clk 0:02:54.5]} 14. Qc3
{[%clk 0:01:56.5]} 14... Ne6 {[%clk 0:02:51.6]} 15. Nc5 {[%clk 0:01:53]} 15...
Nxc5 {[%clk 0:02:48.9]} 16. Qxc5 {[%clk 0:01:53.9]} 16... Bb6 {[%clk 0:02:49.1]}
17. Qc3 {[%clk 0:01:38.2]} 17... h6 {[%clk 0:02:37.2]} 18. Qb3 {[%clk
0:01:34.9]} 18... Qc7 {[%clk 0:02:30.3]} 19. Bd2 {[%clk 0:01:24.3]} 19... Rad8
{[%clk 0:02:28.1]} 20. Bc3 {[%clk 0:01:21.1]} 20... Ba7 {[%clk 0:02:18.2]} 21.
Rae1 {[%clk 0:01:18.6]} 21... dxe4 {[%clk 0:02:13.9]} 22. dxe4 {[%clk
0:00:51.3]} 22... Nd7 {[%clk 0:02:13.6]} 23. Nh4 {[%clk 0:00:36]} 23... Nc5
{[%clk 0:02:09.4]} 24. Qc4 {[%clk 0:00:35.3]} 24... Ne6 {[%clk 0:02:01]} 25. Bf3
{[%clk 0:00:34]} 25... Bxf3 {[%clk 0:01:42.4]} 26. Nxf3 {[%clk 0:00:34.9]} 26...
Nd4 {[%clk 0:01:43]} 27. Bxd4 {[%clk 0:00:34.3]} 27... exd4 {[%clk 0:01:43.1]}
28. Kg2 {[%clk 0:00:30.8]} 28... Re7 {[%clk 0:01:41.9]} 29. Re2 {[%clk
0:00:29.3]} 29... Rde8 {[%clk 0:01:40.1]} 30. Rfe1 {[%clk 0:00:29.2]} 30... Qb6
{[%clk 0:01:40.4]} 31. b3 {[%clk 0:00:22.4]} 31... Qd8 {[%clk 0:01:33.3]} 32.
Qd3 {[%clk 0:00:21]} 32... Bc5 {[%clk 0:01:30.4]} 33. Nh4 {[%clk 0:00:21.5]}
33... Bb4 {[%clk 0:01:28.3]} 34. Rd1 {[%clk 0:00:21.7]} 34... Rd7 {[%clk
0:01:21.6]} 35. e5 {[%clk 0:00:19.6]} 35... Rd5 {[%clk 0:01:20.6]} 36. f4 {[%clk
0:00:19.2]} 36... Bc3 {[%clk 0:01:16.9]} 37. Nf3 {[%clk 0:00:19.5]} 37... Qe7
{[%clk 0:01:14]} 38. Qe4 {[%clk 0:00:19.4]} 38... Red8 {[%clk 0:01:11.2]} 39.
Rd3 {[%clk 0:00:19.5]} 39... b5 {[%clk 0:01:10.8]} 40. g4 {[%clk 0:00:19.3]}
40... bxa4 {[%clk 0:01:10.8]} 41. bxa4 {[%clk 0:00:20.2]} 41... Qb4 {[%clk
0:01:10.8]} 42. g5 {[%clk 0:00:20.6]} 42... Qe7 {[%clk 0:00:25.3]} 43. Kh2
{[%clk 0:00:19.6]} 43... h5 {[%clk 0:00:24.6]} 44. g6 {[%clk 0:00:17.1]} 44...
f6 {[%clk 0:00:20.8]} 45. Qf5 {[%clk 0:00:12.5]} 45... fxe5 {[%clk 0:00:11.9]}
46. Qxh5 {[%clk 0:00:12.7]} 46... Qf6 {[%clk 0:00:10.9]} 47. fxe5 {[%clk
0:00:10.1]} 47... Qf4+ {[%clk 0:00:10.9]} 48. Kg2 {[%clk 0:00:10.6]} 48... Kf8
{[%clk 0:00:06.6]} 49. Ng5 {[%clk 0:00:10.3]} 49... Ke7 {[%clk 0:00:03.8]} 50.
Rf3 {[%clk 0:00:10.6]} 50... Rxe5 {[%clk 0:00:02.3]} 51. Rxf4 {[%clk 0:00:10.1]}
51... Rxe2+ {[%clk 0:00:03.2]} 52. Qxe2+ {[%clk 0:00:10.7]} 1-0

[Event "Late-Titled-Tuesday-Blitz-March-26-2024"]
[Site "Chess.com"]
[Date "2024.03.26"]
[Round "6"]
[White "TheCount"]
[Black "Gravity_Chess"]
[Result "1/2-1/2"]
[WhiteElo "2664"]
[BlackElo "2829"]
[TimeControl "180+1"]
[EndTime "15:08:11 PDT"]
[Termination "Game drawn - insufficient material"]

1. d4 {[%clk 0:03:00.9]} 1... Nf6 {[%clk 0:02:59.9]} 2. c4 {[%clk 0:03:01.3]}
2... g6 {[%clk 0:03:00.5]} 3. Nc3 {[%clk 0:03:01.4]} 3... Bg7 {[%clk 0:03:01.2]}
4. e4 {[%clk 0:03:01.8]} 4... d6 {[%clk 0:03:01.9]} 5. Be2 {[%clk 0:03:02.4]}
5... Nc6 {[%clk 0:02:58.1]} 6. d5 {[%clk 0:02:54.9]} 6... Nb8 {[%clk 0:02:57.9]}
7. Bg5 {[%clk 0:02:51.4]} 7... h6 {[%clk 0:02:58]} 8. Bh4 {[%clk 0:02:51.5]}
8... Nbd7 {[%clk 0:02:58.4]} 9. f4 {[%clk 0:02:51]} 9... O-O {[%clk 0:02:56.9]}
10. Nf3 {[%clk 0:02:50.6]} 10... Nc5 {[%clk 0:02:57.6]} 11. Qc2 {[%clk
0:02:49.7]} 11... c6 {[%clk 0:02:29.9]} 12. h3 {[%clk 0:02:25.3]} 12... cxd5
{[%clk 0:02:28.7]} 13. cxd5 {[%clk 0:02:22.8]} 13... Nfxe4 {[%clk 0:02:14]} 14.
Nxe4 {[%clk 0:02:20.8]} 14... Bf5 {[%clk 0:02:14.7]} 15. Bd3 {[%clk 0:02:06.1]}
15... Rc8 {[%clk 0:01:32.1]} 16. Nxc5 {[%clk 0:02:04.6]} 16... Rxc5 {[%clk
0:01:29.4]} 17. Qb3 {[%clk 0:01:41.1]} 17... Qa5+ {[%clk 0:01:17.8]} 18. Kf2
{[%clk 0:01:38]} 18... Bxd3 {[%clk 0:01:09.5]} 19. Qxd3 {[%clk 0:01:38.9]} 19...
Rxd5 {[%clk 0:01:10.1]} 20. Qe3 {[%clk 0:01:29.8]} 20... e5 {[%clk 0:01:10.6]}
21. fxe5 {[%clk 0:01:18.2]} 21... dxe5 {[%clk 0:01:11.5]} 22. Rhd1 {[%clk
0:00:57.4]} 22... Rxd1 {[%clk 0:01:08.3]} 23. Rxd1 {[%clk 0:00:56.7]} 23... Qxa2
{[%clk 0:01:08.9]} 24. Be7 {[%clk 0:00:46.5]} 24... Re8 {[%clk 0:01:02.2]} 25.
Ba3 {[%clk 0:00:47.1]} 25... a6 {[%clk 0:01:01.8]} 26. Qe4 {[%clk 0:00:43.9]}
26... b5 {[%clk 0:00:50.5]} 27. g4 {[%clk 0:00:44]} 27... Bf8 {[%clk 0:00:36.7]}
28. Bxf8 {[%clk 0:00:38.6]} 28... Kxf8 {[%clk 0:00:32.7]} 29. Rd2 {[%clk
0:00:31.8]} 29... Qe6 {[%clk 0:00:27.6]} 30. Re2 {[%clk 0:00:31.8]} 30... Kg7
{[%clk 0:00:20.7]} 31. Qxe5+ {[%clk 0:00:27.2]} 31... Qxe5 {[%clk 0:00:21.2]}
32. Rxe5 {[%clk 0:00:25.6]} 32... Rc8 {[%clk 0:00:21.8]} 33. Nd4 {[%clk
0:00:22.1]} 33... Rc4 {[%clk 0:00:20.7]} 34. Rd5 {[%clk 0:00:20.7]} 34... Rb4
{[%clk 0:00:17.8]} 35. b3 {[%clk 0:00:21.2]} 35... a5 {[%clk 0:00:17.9]} 36. Ke3
{[%clk 0:00:21.7]} 36... a4 {[%clk 0:00:18.4]} 37. Rxb5 {[%clk 0:00:19.4]} 37...
Rxb5 {[%clk 0:00:19]} 38. Nxb5 {[%clk 0:00:20]} 38... axb3 {[%clk 0:00:19.8]}
39. Kd3 {[%clk 0:00:19]} 39... b2 {[%clk 0:00:19.6]} 40. Kc2 {[%clk 0:00:18.9]}
40... Kf6 {[%clk 0:00:20.1]} 41. Nd6 {[%clk 0:00:18.1]} 41... Ke6 {[%clk
0:00:20.7]} 42. Nc4 {[%clk 0:00:16.9]} 42... Kd5 {[%clk 0:00:21.3]} 43. Nxb2
{[%clk 0:00:15.5]} 43... Ke4 {[%clk 0:00:22.1]} 44. Nd3 {[%clk 0:00:16.1]} 44...
f6 {[%clk 0:00:22]} 45. Kd2 {[%clk 0:00:14.4]} 45... Kf3 {[%clk 0:00:22.5]} 46.
Ke1 {[%clk 0:00:12.5]} 46... Kg3 {[%clk 0:00:22]} 47. Nf2 {[%clk 0:00:12.8]}
47... f5 {[%clk 0:00:14.5]} 48. gxf5 {[%clk 0:00:12.9]} 48... gxf5 {[%clk
0:00:15.4]} 49. Ke2 {[%clk 0:00:13.5]} 49... f4 {[%clk 0:00:15.1]} 50. Kf1
{[%clk 0:00:11]} 50... h5 {[%clk 0:00:14.5]} 51. Kg1 {[%clk 0:00:08.9]} 51... f3
{[%clk 0:00:12.1]} 52. Kf1 {[%clk 0:00:06.5]} 52... Kh2 {[%clk 0:00:12.5]} 53.
h4 {[%clk 0:00:03.4]} 53... Kg3 {[%clk 0:00:12.9]} 54. Ne4+ {[%clk 0:00:03.9]}
54... Kf4 {[%clk 0:00:12.7]} 55. Nf6 {[%clk 0:00:03.3]} 55... Kg3 {[%clk
0:00:12.3]} 56. Nxh5+ {[%clk 0:00:02.4]} 56... Kxh4 {[%clk 0:00:13.2]} 57. Nf6
{[%clk 0:00:02.7]} 57... Kg3 {[%clk 0:00:14.1]} 58. Nd5 {[%clk 0:00:03.3]} 58...
Kg4 {[%clk 0:00:14.5]} 59. Ne3+ {[%clk 0:00:03.7]} 59... Kf4 {[%clk 0:00:14.8]}
60. Nd1 {[%clk 0:00:04.6]} 60... Ke4 {[%clk 0:00:15.7]} 61. Nf2+ {[%clk
0:00:05.5]} 61... Kf4 {[%clk 0:00:16.3]} 62. Nh1 {[%clk 0:00:06]} 62... Ke3
{[%clk 0:00:16.8]} 63. Ke1 {[%clk 0:00:06.3]} 63... f2+ {[%clk 0:00:17.7]} 64.
Nxf2 {[%clk 0:00:06.1]} 1/2-1/2

[Event "Late-Titled-Tuesday-Blitz-March-26-2024"]
[Site "Chess.com"]
[Date "2024.03.26"]
[Round "6"]
[White "hansen"]
[Black "KaydenTroffChess"]
[Result "1/2-1/2"]
[WhiteElo "2970"]
[BlackElo "2863"]
[TimeControl "180+1"]
[EndTime "15:08:12 PDT"]
[Termination "Game drawn by repetition"]

1. Nf3 {[%clk 0:03:00.9]} 1... Nf6 {[%clk 0:02:58.3]} 2. g3 {[%clk 0:03:00.7]}
2... g6 {[%clk 0:02:58.8]} 3. Bg2 {[%clk 0:03:01]} 3... Bg7 {[%clk 0:02:59.1]}
4. O-O {[%clk 0:03:01.7]} 4... O-O {[%clk 0:02:59.1]} 5. c4 {[%clk 0:03:01.3]}
5... c6 {[%clk 0:02:59.2]} 6. d4 {[%clk 0:02:54.5]} 6... d5 {[%clk 0:02:58.7]}
7. Qb3 {[%clk 0:02:55.1]} 7... Nbd7 {[%clk 0:02:49.7]} 8. cxd5 {[%clk
0:02:52.9]} 8... cxd5 {[%clk 0:02:49.6]} 9. Nc3 {[%clk 0:02:52.9]} 9... Nb6
{[%clk 0:02:36.6]} 10. a4 {[%clk 0:02:44.7]} 10... Ne4 {[%clk 0:02:25.7]} 11. a5
{[%clk 0:02:27.2]} 11... Nxc3 {[%clk 0:02:25.3]} 12. bxc3 {[%clk 0:02:27.1]}
12... Nc4 {[%clk 0:02:25]} 13. a6 {[%clk 0:02:26.2]} 13... bxa6 {[%clk
0:02:13.9]} 14. Nd2 {[%clk 0:02:26.3]} 14... Nb6 {[%clk 0:02:08]} 15. Ba3 {[%clk
0:02:14]} 15... Rb8 {[%clk 0:02:02.9]} 16. Bb4 {[%clk 0:02:07.2]} 16... Re8
{[%clk 0:01:46.9]} 17. e3 {[%clk 0:02:03.6]} 17... Bf5 {[%clk 0:01:33.5]} 18.
Rfc1 {[%clk 0:01:48.2]} 18... Bd3 {[%clk 0:01:32]} 19. Qa2 {[%clk 0:01:30.7]}
19... e5 {[%clk 0:00:58.6]} 20. Ba5 {[%clk 0:01:21.8]} 20... e4 {[%clk
0:00:55.7]} 21. Bf1 {[%clk 0:01:09.8]} 21... Bxf1 {[%clk 0:00:49]} 22. Kxf1
{[%clk 0:01:04.8]} 22... h5 {[%clk 0:00:48.8]} 23. Bb4 {[%clk 0:01:01.4]} 23...
h4 {[%clk 0:00:41.9]} 24. Qxa6 {[%clk 0:01:01.3]} 24... Qd7 {[%clk 0:00:37.6]}
25. Kg1 {[%clk 0:00:47.8]} 25... Bh6 {[%clk 0:00:33.3]} 26. Qxa7 {[%clk
0:00:38.8]} 26... Qg4 {[%clk 0:00:32.7]} 27. Bd6 {[%clk 0:00:39.2]} 27... Rbd8
{[%clk 0:00:10.8]} 28. Qxb6 {[%clk 0:00:38.8]} 28... Qe2 {[%clk 0:00:11.5]} 29.
gxh4 {[%clk 0:00:20.1]} 29... Qxd2 {[%clk 0:00:09.1]} 30. Bg3 {[%clk 0:00:19.3]}
30... Qe2 {[%clk 0:00:08.9]} 31. Qa6 {[%clk 0:00:14.8]} 31... Qf3 {[%clk
0:00:07.6]} 32. Qf1 {[%clk 0:00:08.6]} 32... Rc8 {[%clk 0:00:07.8]} 33. c4
{[%clk 0:00:07.7]} 33... dxc4 {[%clk 0:00:07.3]} 34. Rxc4 {[%clk 0:00:08.6]}
34... Rxc4 {[%clk 0:00:07.4]} 35. Qxc4 {[%clk 0:00:09.5]} 35... Bxe3 {[%clk
0:00:04.5]} 36. fxe3 {[%clk 0:00:03]} 36... Qxe3+ {[%clk 0:00:05.4]} 37. Kg2
{[%clk 0:00:02.7]} 37... Qf3+ {[%clk 0:00:05.6]} 38. Kg1 {[%clk 0:00:03.1]}
38... Qe3+ {[%clk 0:00:06.2]} 39. Bf2 {[%clk 0:00:03]} 39... Qf3 {[%clk
0:00:06.8]} 40. Qa4 {[%clk 0:00:02.4]} 40... Rc8 {[%clk 0:00:04.8]} 41. Qa6
{[%clk 0:00:02.2]} 41... Re8 {[%clk 0:00:03.2]} 42. Qc6 {[%clk 0:00:02.2]} 42...
Re6 {[%clk 0:00:02.7]} 43. Qa8+ {[%clk 0:00:02]} 43... Kh7 {[%clk 0:00:03.1]}
44. Re1 {[%clk 0:00:01.5]} 44... Qg4+ {[%clk 0:00:03.4]} 45. Bg3 {[%clk
0:00:01.7]} 45... Qf3 {[%clk 0:00:03.9]} 46. Qd5 {[%clk 0:00:02]} 46... Rf6
{[%clk 0:00:04.2]} 47. Qxe4 {[%clk 0:00:01.9]} 47... Qc3 {[%clk 0:00:03.8]} 48.
Qe5 {[%clk 0:00:02]} 48... Rf5 {[%clk 0:00:03.8]} 49. Qe4 {[%clk 0:00:02.4]}
49... Qc4 {[%clk 0:00:04.3]} 50. Kg2 {[%clk 0:00:02.5]} 50... Rf6 {[%clk
0:00:04.4]} 51. Kh3 {[%clk 0:00:02.9]} 51... Re6 {[%clk 0:00:04.7]} 52. Qg4
{[%clk 0:00:02.9]} 52... Rxe1 {[%clk 0:00:04.8]} 53. Bxe1 {[%clk 0:00:03.8]}
53... Qd3+ {[%clk 0:00:04.6]} 54. Qg3 {[%clk 0:00:03.2]} 54... Qf1+ {[%clk
0:00:04.9]} 55. Qg2 {[%clk 0:00:02.5]} 55... Qd3+ {[%clk 0:00:04.8]} 56. Qg3
{[%clk 0:00:01.3]} 56... Qf1+ {[%clk 0:00:05.4]} 57. Qg2 {[%clk 0:00:01.9]}
57... Qd3+ {[%clk 0:00:06.1]} 58. Qg3 {[%clk 0:00:02.4]} 1/2-1/2

[Event "Late-Titled-Tuesday-Blitz-March-26-2024"]
[Site "Chess.com"]
[Date "2024.03.26"]
[Round "6"]
[White "ExtremeLearner"]
[Black "only_strong_moves"]
[Result "0-1"]
[WhiteElo "2545"]
[BlackElo "2689"]
[TimeControl "180+1"]
[EndTime "15:08:12 PDT"]
[Termination "only_strong_moves won by checkmate"]

1. Nf3 {[%clk 0:02:55.7]} 1... Nf6 {[%clk 0:02:59.4]} 2. d4 {[%clk 0:02:55.7]}
2... e6 {[%clk 0:02:59.3]} 3. c4 {[%clk 0:02:56.1]} 3... d5 {[%clk 0:03:00.2]}
4. g3 {[%clk 0:02:55.1]} 4... Be7 {[%clk 0:03:00.3]} 5. Bg2 {[%clk 0:02:55.5]}
5... O-O {[%clk 0:03:01]} 6. O-O {[%clk 0:02:55.9]} 6... dxc4 {[%clk 0:03:01.9]}
7. Qc2 {[%clk 0:02:53.4]} 7... a6 {[%clk 0:03:02]} 8. a4 {[%clk 0:02:53.8]} 8...
Bd7 {[%clk 0:03:02.5]} 9. Rd1 {[%clk 0:02:53.1]} 9... Bc6 {[%clk 0:03:00.1]} 10.
Nc3 {[%clk 0:02:53.5]} 10... Bxf3 {[%clk 0:02:57.7]} 11. Bxf3 {[%clk 0:02:54.4]}
11... c6 {[%clk 0:02:58.2]} 12. Ne4 {[%clk 0:02:48.4]} 12... Nd5 {[%clk
0:02:48.6]} 13. Qxc4 {[%clk 0:02:43]} 13... Nd7 {[%clk 0:02:47.2]} 14. a5 {[%clk
0:02:37.3]} 14... Rc8 {[%clk 0:02:40.5]} 15. Nc5 {[%clk 0:02:36.7]} 15... Bxc5
{[%clk 0:02:31.1]} 16. dxc5 {[%clk 0:02:37.6]} 16... Ne5 {[%clk 0:02:31.7]} 17.
Qc2 {[%clk 0:02:31.7]} 17... Nxf3+ {[%clk 0:02:31.5]} 18. exf3 {[%clk
0:02:32.6]} 18... Qf6 {[%clk 0:02:30.4]} 19. Kg2 {[%clk 0:02:31.3]} 19... Rfd8
{[%clk 0:02:30]} 20. Bd2 {[%clk 0:02:19.2]} 20... h6 {[%clk 0:02:25.4]} 21. Rac1
{[%clk 0:02:01.3]} 21... Rd7 {[%clk 0:02:19.8]} 22. Bc3 {[%clk 0:01:58.7]} 22...
Qe7 {[%clk 0:02:17.4]} 23. Be5 {[%clk 0:01:56.3]} 23... Rcd8 {[%clk 0:02:14.7]}
24. Bd6 {[%clk 0:01:56.1]} 24... Qf6 {[%clk 0:02:13.3]} 25. Qe2 {[%clk
0:01:47.1]} 25... Qg6 {[%clk 0:02:11.4]} 26. Rc4 {[%clk 0:01:36.1]} 26... Re8
{[%clk 0:02:00.4]} 27. Rg4 {[%clk 0:01:35.1]} 27... Qh7 {[%clk 0:01:53.6]} 28.
Be5 {[%clk 0:01:26.6]} 28... f6 {[%clk 0:01:49.1]} 29. Bd6 {[%clk 0:01:18.8]}
29... h5 {[%clk 0:01:49.2]} 30. Re4 {[%clk 0:01:13.4]} 30... Qf5 {[%clk
0:01:37.7]} 31. g4 {[%clk 0:00:53.7]} 31... Qg6 {[%clk 0:01:16]} 32. Rxe6 {[%clk
0:00:51]} 32... Rxe6 {[%clk 0:01:10.5]} 33. Qxe6+ {[%clk 0:00:50.6]} 33... Rf7
{[%clk 0:01:11.4]} 34. Rd4 {[%clk 0:00:27.7]} 34... h4 {[%clk 0:01:09.4]} 35.
Re4 {[%clk 0:00:20.4]} 35... Kh7 {[%clk 0:00:51.4]} 36. Kh3 {[%clk 0:00:11.7]}
36... f5 {[%clk 0:00:39.2]} 37. Qxg6+ {[%clk 0:00:09.1]} 37... Kxg6 {[%clk
0:00:40.1]} 38. gxf5+ {[%clk 0:00:09.1]} 38... Rxf5 {[%clk 0:00:41]} 39. Rg4+
{[%clk 0:00:04.8]} 39... Kf6 {[%clk 0:00:35.7]} 40. Kg2 {[%clk 0:00:05.3]} 40...
g5 {[%clk 0:00:34.9]} 41. Re4 {[%clk 0:00:05.2]} 41... Kf7 {[%clk 0:00:32.1]}
42. b3 {[%clk 0:00:02.5]} 42... Rf6 {[%clk 0:00:26.7]} 43. Rc4 {[%clk
0:00:03.1]} 43... Re6 {[%clk 0:00:26]} 44. Re4 {[%clk 0:00:03.4]} 44... Kf6
{[%clk 0:00:20.6]} 45. Rg4 {[%clk 0:00:02.8]} 45... Re2 {[%clk 0:00:18.2]} 46.
f4 {[%clk 0:00:01.4]} 46... gxf4 {[%clk 0:00:13.6]} 47. Bxf4 {[%clk 0:00:02.3]}
47... Kf5 {[%clk 0:00:13.4]} 48. Rxh4 {[%clk 0:00:02.5]} 48... Nxf4+ {[%clk
0:00:12.6]} 49. Kf3 {[%clk 0:00:03.2]} 49... Re4 {[%clk 0:00:11.8]} 50. Rh8
{[%clk 0:00:01.9]} 50... Rb4 {[%clk 0:00:10.7]} 51. Rb8 {[%clk 0:00:02.8]} 51...
Rxb3# {[%clk 0:00:10.7]} 0-1

[Event "Late-Titled-Tuesday-Blitz-March-26-2024"]
[Site "Chess.com"]
[Date "2024.03.26"]
[Round "6"]
[White "financieru"]
[Black "newauto"]
[Result "1-0"]
[WhiteElo "2409"]
[BlackElo "2211"]
[TimeControl "180+1"]
[EndTime "15:08:12 PDT"]
[Termination "financieru won on time"]

1. d4 {[%clk 0:02:59.9]} 1... c6 {[%clk 0:03:00.9]} 2. c4 {[%clk 0:02:59.7]}
2... d5 {[%clk 0:03:01.8]} 3. Nc3 {[%clk 0:03:00.2]} 3... Nf6 {[%clk 0:03:02.1]}
4. Nf3 {[%clk 0:03:01]} 4... dxc4 {[%clk 0:03:02.4]} 5. a4 {[%clk 0:03:01.3]}
5... Bf5 {[%clk 0:03:02.3]} 6. Ne5 {[%clk 0:03:01.5]} 6... Nbd7 {[%clk 0:03:02]}
7. Nxc4 {[%clk 0:03:00.3]} 7... Nb6 {[%clk 0:03:02.2]} 8. Ne5 {[%clk 0:03:00.8]}
8... Nfd7 {[%clk 0:03:01.8]} 9. Nf3 {[%clk 0:02:58.4]} 9... e6 {[%clk
0:03:01.6]} 10. Bf4 {[%clk 0:02:57.7]} 10... Bb4 {[%clk 0:03:00.6]} 11. e3
{[%clk 0:02:58]} 11... a5 {[%clk 0:03:00]} 12. Be2 {[%clk 0:02:57.3]} 12... O-O
{[%clk 0:02:59.4]} 13. O-O {[%clk 0:02:57.9]} 13... h6 {[%clk 0:02:56.8]} 14. h3
{[%clk 0:02:55.9]} 14... Bg6 {[%clk 0:02:56.1]} 15. Ne5 {[%clk 0:02:50.4]} 15...
Nxe5 {[%clk 0:02:54.8]} 16. Bxe5 {[%clk 0:02:51.3]} 16... Nd5 {[%clk 0:02:46.3]}
17. Rc1 {[%clk 0:02:35.7]} 17... Bd6 {[%clk 0:02:25]} 18. Bxd6 {[%clk
0:02:23.2]} 18... Qxd6 {[%clk 0:02:25.9]} 19. Nxd5 {[%clk 0:02:19.9]} 19... exd5
{[%clk 0:02:21.8]} 20. Qb3 {[%clk 0:02:11.9]} 20... Qe7 {[%clk 0:02:15.8]} 21.
Qc3 {[%clk 0:02:04.4]} 21... f5 {[%clk 0:02:13.3]} 22. Bd3 {[%clk 0:01:47]}
22... Bh7 {[%clk 0:02:10.1]} 23. g3 {[%clk 0:01:45.5]} 23... g5 {[%clk
0:02:09.3]} 24. Kh2 {[%clk 0:01:43.8]} 24... Kh8 {[%clk 0:02:07.7]} 25. Rb1
{[%clk 0:01:31.2]} 25... f4 {[%clk 0:01:59.4]} 26. gxf4 {[%clk 0:01:27.7]} 26...
gxf4 {[%clk 0:01:58.3]} 27. Bxh7 {[%clk 0:01:26.4]} 27... fxe3 {[%clk
0:01:29.1]} 28. Bd3 {[%clk 0:00:46.4]} 28... exf2 {[%clk 0:01:10.1]} 29. Qd2
{[%clk 0:00:24.3]} 29... Qd6+ {[%clk 0:01:07.2]} 30. Kh1 {[%clk 0:00:24.5]}
30... Qf6 {[%clk 0:00:50.6]} 31. Rxf2 {[%clk 0:00:12.7]} 31... Qh4 {[%clk
0:00:42.9]} 32. Rh2 {[%clk 0:00:10]} 32... Rf3 {[%clk 0:00:37.4]} 33. Bf1 {[%clk
0:00:09]} 33... Rg8 {[%clk 0:00:27.8]} 34. Bg2 {[%clk 0:00:07.5]} 34... Rf2
{[%clk 0:00:26.8]} 35. Qe3 {[%clk 0:00:05.3]} 35... Rf6 {[%clk 0:00:12.8]} 36.
Rf1 {[%clk 0:00:05.6]} 36... Rfg6 {[%clk 0:00:11.9]} 37. Qe5+ {[%clk 0:00:05.1]}
37... Kh7 {[%clk 0:00:10.3]} 38. Rg1 {[%clk 0:00:03.6]} 38... R8g7 {[%clk
0:00:11.2]} 39. Qe2 {[%clk 0:00:03.3]} 39... Rg3 {[%clk 0:00:10.7]} 40. Rf1
{[%clk 0:00:03.5]} 40... Qg5 {[%clk 0:00:07]} 41. Qc2+ {[%clk 0:00:04.2]} 41...
Kg8 {[%clk 0:00:06.3]} 42. Rg1 {[%clk 0:00:05.1]} 42... h5 {[%clk 0:00:05.7]}
43. Qf2 {[%clk 0:00:05.3]} 43... h4 {[%clk 0:00:05.9]} 44. Rf1 {[%clk
0:00:05.1]} 44... Qg6 {[%clk 0:00:01.3]} 45. Qf8+ {[%clk 0:00:05.4]} 45... Kh7
{[%clk 0:00:01.3]} 46. Qf5 {[%clk 0:00:05.9]} 46... Qxf5 {[%clk 0:00:01.2]} 47.
Rxf5 {[%clk 0:00:06.8]} 47... Rb3 {[%clk 0:00:01.3]} 48. Rh5+ {[%clk 0:00:07.3]}
48... Kg6 {[%clk 0:00:01.4]} 49. Bf1 {[%clk 0:00:07.6]} 49... Kxh5 {[%clk
0:00:01]} 50. Rf2 {[%clk 0:00:07.9]} 1-0